bitfinex-derivatives/quotes_ETHF0:USTF0_20250428
["timestamp","ask_amount","ask_price","bid_price","bid_amount"]
[1745834419370,0.8677,1808.0,1807.8,10.52722]
[1745834419371,1.97358,1808.0,1807.8,10.52722]
[1745834419563,0.8677,1808.0,1807.8,9.4213]
[1745834419768,1.97358,1808.0,1807.8,7.31945]
[1745834419971,1.97358,1808.0,1807.8,7.31942]
[1745834420171,5.97211,1808.2,1808.0,1.10582]
[1745834420172,3.2078,1808.2,1808.0,1.10582]
[1745834420471,0.8677,1808.1,1808.0,1.10582]
[1745834420659,0.8677,1808.1,1807.9,1.5888]
[1745834420660,1.9735,1808.1,1807.9,1.5888]
[1745834420865,1.9735,1808.1,1807.9,2.69464]
[1745834421064,1.9735,1808.1,1807.9,6.49664]
[1745834421266,1.10584,1808.0,1807.9,3.802]
[1745834421868,1.10584,1808.0,1807.9,4.9079]
[1745834424078,2.69102,1808.1,1808.0,1.10584]
[1745834424275,1.97352,1808.1,1808.0,1.10584]
[1745834424476,0.8677,1808.1,1808.0,1.10584]
[1745834425075,0.8677,1808.1,1808.0,5.5096]
[1745834425479,1.97347,1808.1,1808.0,5.5096]
[1745834425672,1.97347,1808.1,1808.0,3.802]
[1745834429880,1.97347,1808.1,1808.0,5.4395]
[1745834430682,2.80314,1808.2,1808.0,6.2796]
[1745834430883,2.80314,1808.2,1808.1,2.79347]
[1745834431083,1.10574,1808.2,1808.1,3.63307]
[1745834431382,1.10574,1808.2,1808.1,2.5273]
[1745834431582,1.10574,1808.2,1808.1,3.63307]
[1745834431985,1.10574,1808.2,1808.1,2.5273]
[1745834432181,1.10577,1808.1,1808.0,3.802]
[1745834433285,5.91897,1808.1,1808.0,3.802]
[1745834434279,1.10596,1807.8,1807.7,4.50137]
[1745834434488,1.10596,1807.8,1807.7,2.78567]
[1745834435083,1.10596,1807.8,1807.7,6.58767]
[1745834436288,1.10594,1807.9,1807.8,1.10596]
[1745834436993,1.10594,1807.9,1807.8,4.31376]
[1745834437288,1.10594,1807.9,1807.8,8.11576]
[1745834437485,1.10594,1807.9,1807.8,7.0098]
[1745834438488,1.10594,1807.9,1807.8,8.11576]
[1745834438990,1.10594,1807.9,1807.8,7.0098]
[1745834439488,1.10594,1807.9,1807.8,8.11576]
[1745834439692,1.1059,1808.0,1807.9,1.10586]
[1745834440080,1.10584,1808.1,1808.0,1.1058]
[1745834440286,1.10584,1808.1,1808.0,5.974]
[1745834440483,2.4986,1808.4,1808.0,12.63271]
[1745834440684,1.10565,1808.3,1808.2,4.31346]
[1745834441081,5.26252,1808.5,1808.2,7.0098]
[1745834441287,1.10565,1808.3,1808.2,8.11547]
[1745834441579,2.80304,1808.4,1808.3,1.10565]
[1745834441785,2.80304,1808.4,1808.2,8.11546]
[1745834441981,2.80304,1808.4,1808.3,1.10565]
[1745834442187,2.80304,1808.4,1808.2,7.0098]
[1745834442188,1.10565,1808.3,1808.2,3.2078]
[1745834442382,1.10577,1808.1,1808.0,5.17934]
[1745834443191,1.10577,1808.1,1808.0,8.98134]
[1745834444294,1.10577,1808.1,1808.0,8.11564]
[1745834444590,1.92587,1808.1,1808.0,8.11564]
[1745834445694,0.8201,1808.1,1808.0,8.11564]
[1745834445991,2.74436,1808.2,1808.1,1.10577]
[1745834447493,1.6386,1808.2,1808.1,2.74967]
[1745834447696,2.74431,1808.2,1808.1,2.74967]
[1745834447989,1.6386,1808.2,1808.1,2.74967]
[1745834448293,2.74431,1808.2,1808.1,2.74967]
[1745834448895,1.6386,1808.2,1808.1,2.74967]
[1745834449298,1.89628,1808.3,1808.2,1.10571]
[1745834449597,1.89628,1808.3,1808.2,2.78251]
[1745834450202,1.89628,1808.3,1808.2,6.58451]
[1745834450684,1.89628,1808.3,1808.2,5.4788]
[1745834451491,5.10408,1808.3,1808.2,1.03579419]
[1745834451894,8.9984,1808.3,1807.4,3.2078]
[1745834452199,1.10603,1807.7,1807.6,2.84168]
[1745834452396,1.106,1807.8,1807.6,2.84168]
[1745834452588,1.106,1807.8,1807.7,1.7356]
[1745834452992,2.7164,1807.8,1807.7,1.7356]
[1745834453300,2.7164,1807.8,1807.7,3.802]
[1745834454593,2.7164,1807.8,1807.7,5.5376]
[1745834455192,2.7164,1807.8,1807.7,6.4092]
[1745834456897,1.106,1807.8,1807.7,6.4092]
[1745834457704,5.7191,1808.0,1807.7,6.4092]
[1745834457904,1.1059,1807.9,1807.8,1.583]
[1745834458197,1.1059,1807.9,1807.8,5.385]
[1745834460300,2.76418,1808.3,1807.8,13.5928]
[1745834460500,1.10585,1808.0,1807.9,2.468]
[1745834460705,1.10585,1808.0,1807.9,5.6758]
[1745834460902,1.10585,1808.0,1807.9,46.4758]
[1745834461101,1.10585,1808.0,1807.9,50.2778]
[1745834461501,1.10585,1808.0,1807.9,49.456]
[1745834461699,1.10585,1808.0,1807.9,46.2482]
[1745834463404,1.10585,1808.0,1807.9,5.4482]
[1745834463704,1.10585,1808.0,1807.9,9.5175]
[1745834463904,1.10585,1808.0,1807.9,50.3175]
[1745834464608,1.10581,1808.1,1807.9,51.42337]
[1745834464908,1.10577,1808.1,1808.0,2.73014]
[1745834465206,1.10577,1808.1,1808.0,3.57524]
[1745834465809,1.10577,1808.1,1808.0,2.4694]
[1745834466306,1.10577,1808.1,1808.0,7.37724]
[1745834468208,1.7202,1808.2,1808.1,1.10577]
[1745834468402,1.10565,1808.3,1808.2,1.10571]
[1745834468798,1.10565,1808.3,1808.2,2.84961]
[1745834469204,1.10565,1808.3,1808.2,6.65161]
[1745834471107,1.10565,1808.3,1808.2,7.45981]
[1745834471808,2.83274,1808.4,1808.3,1.10565]
[1745834472005,2.83274,1808.4,1808.3,3.50545]
[1745834472195,2.83274,1808.4,1808.3,7.30745]
[1745834473201,1.7271,1808.4,1808.3,7.30745]
[1745834473407,2.83269,1808.4,1808.3,7.30745]
[1745834477005,1.90115,1808.5,1808.4,1.10559]
[1745834477205,1.90115,1808.5,1808.4,1.6419]
[1745834477505,3.59885,1808.5,1808.4,2.74749]
[1745834477708,3.59885,1808.5,1808.4,1.6419]
[1745834478007,1.10559,1808.4,1808.3,5.7116]
[1745834478307,2.80329,1808.4,1808.3,3.5515]
[1745834479297,2.80329,1808.4,1808.3,7.3535]
[1745834481517,1.6977,1808.4,1808.3,7.3535]
[1745834481906,2.80329,1808.4,1808.3,7.3535]
[1745834482406,1.10559,1808.4,1808.3,7.3535]
[1745834484615,1.10559,1808.4,1808.3,6.2479]
[1745834486015,2.71209,1808.4,1808.3,6.2479]
[1745834489017,2.71209,1808.4,1808.3,7.35355]
[1745834489518,2.71209,1808.4,1808.3,6.2479]
[1745834490009,2.71209,1808.4,1808.3,7.35355]
[1745834490211,1.6065,1808.4,1808.3,7.35355]
[1745834490411,2.71209,1808.4,1808.3,7.35355]
[1745834490812,2.71209,1808.4,1808.3,6.2479]
[1745834492513,2.71209,1808.4,1808.3,4.606]
[1745834492709,1.10577,1808.1,1808.0,1.683]
[1745834492918,1.10577,1808.1,1808.0,2.4743]
[1745834493113,1.10577,1808.1,1808.0,6.2763]
[1745834493521,1.10577,1808.1,1808.0,7.38214]
[1745834497026,1.10577,1808.1,1808.0,6.2763]
[1745834497217,2.72997,1808.1,1808.0,6.2763]
[1745834498013,2.72997,1808.1,1808.0,7.38214]
[1745834498916,2.72997,1808.1,1808.0,6.2763]
[1745834499118,2.72997,1808.1,1808.0,7.38214]
[1745834500221,2.72997,1808.1,1808.0,10.58994]
[1745834502024,1.6242,1808.1,1808.0,10.58994]
[1745834502617,1.95764,1808.2,1808.0,10.58994]
[1745834502812,3.69154,1808.2,1808.1,1.6912]
[1745834503113,3.69154,1808.2,1808.1,2.79697]
[1745834503316,3.69154,1808.2,1808.1,1.6912]
[1745834503513,3.69154,1808.2,1808.1,2.79697]
[1745834504031,2.5858,1808.2,1808.1,2.79697]
[1745834504224,1.10555,1808.5,1808.2,2.76429]
[1745834504524,2.70605,1808.5,1808.4,1.10557]
[1745834505124,2.70605,1808.5,1808.4,4.90757]
[1745834505725,2.70605,1808.5,1808.4,3.802]
[1745834505929,3.49485,1808.5,1808.4,4.90759]
[1745834506823,3.49485,1808.5,1808.4,3.802]
[1745834507228,6.70265,1808.5,1808.4,3.802]
[1745834508224,1.10562,1808.4,1808.3,1.10559]
[1745834508426,2.73972,1808.4,1808.3,1.10559]
[1745834508927,1.10565,1808.3,1808.2,1.10567]
[1745834509129,2.4576,1808.3,1808.2,1.10567]
[1745834509329,2.4576,1808.3,1808.2,2.78117]
[1745834509923,3.56325,1808.3,1808.2,2.78117]
[1745834510125,3.56325,1808.3,1808.2,6.58317]
[1745834510622,3.56325,1808.3,1808.2,4.90767]
[1745834511821,3.56325,1808.3,1808.2,3.802]
[1745834513525,3.56325,1808.3,1808.2,4.90771]
[1745834513720,3.56325,1808.3,1808.2,5.4685]
[1745834514324,1.10565,1808.3,1808.2,6.57421]
[1745834515429,1.10565,1808.3,1808.2,7.39851]
[1745834516728,1.10565,1808.3,1808.2,6.2928]
[1745834517030,2.84605,1808.3,1808.2,3.802]
[1745834518027,2.84605,1808.3,1808.0,0.7888]
[1745834518232,1.10596,1807.8,1807.7,3.2017]
[1745834518431,1.10596,1807.8,1807.7,6.4095]
[1745834518627,1.10596,1807.8,1807.7,47.2095]
[1745834519133,1.10596,1807.8,1807.7,51.0115]
[1745834519332,2.80656,1807.8,1807.7,52.11752]
[1745834522030,6.01436,1807.8,1807.7,3.78400001]
[1745834522227,6.01436,1807.8,1807.1,3.2078]
[1745834522228,2.76536,1807.5,1807.1,3.2078]
[1745834522428,1.10633,1807.2,1807.1,3.2078]
[1745834522726,1.10639,1807.1,1807.0,2.4797]
[1745834522921,1.6231,1807.1,1807.0,2.4797]
[1745834523226,2.72949,1807.1,1807.0,6.2817]
[1745834523528,1.10634,1807.2,1807.1,1.10639]
[1745834523733,2.72941,1807.3,1807.1,5.94499]
[1745834523929,2.72941,1807.3,1807.2,1.6308]
[1745834524529,3.4501119,1807.3,1807.2,1.6308]
[1745834524932,2.3438019,1807.3,1807.2,2.73713]
[1745834525134,2.3438019,1807.3,1807.2,6.53913]
[1745834525439,2.3438019,1807.3,1807.2,5.4328]
[1745834525731,2.3438019,1807.3,1807.2,6.53913]
[1745834526537,3.4500619,1807.3,1807.2,6.53913]
[1745834527027,3.4500619,1807.3,1807.2,5.4328]
[1745834527434,2.72936,1807.3,1807.2,5.4328]
[1745834527629,0.8534,1807.4,1807.2,6.53913]
[1745834527830,1.10621,1807.4,1807.3,1.7423]
[1745834528032,1.10621,1807.4,1807.3,2.5383]
[1745834528334,1.1061,1807.6,1807.4,1.1062]
[1745834528535,1.1061,1807.6,1807.5,1.7236]
[1745834529125,2.6844,1807.6,1807.5,5.5256]
[1745834530436,2.6844,1807.6,1807.5,6.63174]
[1745834530437,1.5783,1807.6,1807.5,6.63174]
[1745834530737,3.2078,1807.7,1807.5,6.63174]
[1745834530944,3.2078,1807.7,1807.6,1.7236]
[1745834531130,5.89212,1807.7,1807.6,2.5406]
[1745834532333,5.89212,1807.7,1807.6,0.817]
[1745834533528,6.62447732,1807.7,1807.6,2.5326]
[1745834533933,1.10596,1807.8,1807.6,3.63868]
[1745834534230,1.10596,1807.8,1807.7,1.7156]
[1745834535240,1.10596,1807.8,1807.7,5.5176]
[1745834535435,1.10596,1807.8,1807.7,3.802]
[1745834535643,3.56166,1807.8,1807.7,3.802]
[1745834535841,4.38366,1807.8,1807.7,3.802]
[1745834536338,12.59146,1807.8,1807.7,4.1e-06]
[1745834537143,1.10626,1807.3,1807.2,45.7105]
[1745834537335,1.10626,1807.3,1807.2,46.81683]
[1745834538140,1.10626,1807.3,1807.2,50.61883]
[1745834538443,1.10625,1807.4,1807.3,1.10626]
[1745834538643,1.10625,1807.4,1807.3,2.80156]
[1745834538943,1.10625,1807.4,1807.3,1.6953]
[1745834539143,1.10625,1807.4,1807.3,5.4973]
[1745834540037,1.10625,1807.4,1807.3,6.60356]
[1745834540738,1.1062,1807.5,1807.4,1.10619]
[1745834540939,1.10611,1807.6,1807.5,1.1061]
[1745834541444,1.10611,1807.6,1807.5,1.6276]
[1745834541842,1.10611,1807.6,1807.5,2.73374]
[1745834542047,1.10611,1807.6,1807.5,1.6276]
[1745834542252,1.10611,1807.6,1807.5,6.53574]
[1745834542450,1.10606,1807.7,1807.6,1.10608]
[1745834542647,1.10606,1807.7,1807.6,2.73368]
[1745834542952,1.10606,1807.7,1807.6,42.4276]
[1745834543246,1.10606,1807.7,1807.6,40.8]
[1745834543850,2.71316,1807.7,1807.6,40.8]
[1745834546456,1.6071,1807.7,1807.5,5.537]
[1745834546750,2.71316,1807.7,1807.6,1.6211]
[1745834550449,1.10606,1807.7,1807.6,1.6211]
[1745834553754,1.10606,1807.7,1807.6,2.72718]
[1745834556058,1.10606,1807.7,1807.6,1.6211]
[1745834556658,1.10606,1807.7,1807.6,2.72718]
[1745834558759,1.5882,1807.8,1807.7,1.10602]
[1745834558961,1.5882,1807.8,1807.7,4.35432]
[1745834559163,1.5882,1807.8,1807.7,8.15632]
[1745834559658,2.69416,1807.8,1807.7,8.15632]
[1745834560056,1.5882,1807.8,1807.7,8.15632]
[1745834560455,2.69416,1807.8,1807.7,8.15632]
[1745834560857,1.5882,1807.8,1807.7,8.15632]
[1745834561157,2.69416,1807.8,1807.7,8.15632]
[1745834561359,1.5882,1807.8,1807.7,8.15632]
[1745834561560,2.69416,1807.8,1807.7,8.15632]
[1745834562464,1.5882,1807.8,1807.7,48.95632]
[1745834568966,2.69416,1807.8,1807.7,48.95632]
[1745834569561,1.5882,1807.8,1807.7,48.95632]
[1745834569755,0.7987,1807.9,1807.8,1.10596]
[1745834569961,2.4101,1807.9,1807.8,2.77226]
[1745834570163,2.4101,1807.9,1807.8,6.57426]
[1745834570853,3.516,1807.9,1807.8,6.57426]
[1745834571462,3.516,1807.9,1807.8,5.4683]
[1745834571662,0.6555179,1808.0,1807.8,5.4683]
[1745834571867,1.10584,1808.0,1807.9,2.6895]
[1745834572370,1.10584,1808.0,1807.9,42.3836]
[1745834572668,1.76521381,1808.0,1807.9,42.3836]
[1745834572863,3.34951381,1808.0,1807.9,42.3836]
[1745834573166,3.34951381,1808.0,1807.9,46.1856]
[1745834573866,3.34951381,1808.0,1807.9,3.802]
[1745834574267,1.10596,1807.8,1807.7,6.4282]
[1745834574568,1.10596,1807.8,1807.7,48.33422]
[1745834575168,1.10596,1807.8,1807.7,52.13622]
[1745834576064,1.10596,1807.9,1807.8,1.10596]
[1745834576262,1.10596,1807.9,1807.8,2.72696]
[1745834576765,0.65937381,1808.0,1807.9,1.1059]
[1745834576766,1.76525381,1808.0,1807.9,1.1059]
[1745834576965,1.10588,1808.0,1807.9,2.8043]
[1745834577266,1.10588,1808.0,1807.9,6.6063]
[1745834577468,1.10583,1808.1,1808.0,1.10584]
[1745834577665,1.10583,1808.1,1808.0,4.45754]
[1745834578264,1.10583,1808.1,1808.0,8.25954]
[1745834580473,1.10575,1808.2,1808.1,1.10571]
[1745834580674,1.10558,1808.5,1808.4,1.10554]
[1745834580870,3.4949,1808.6,1808.3,6.77431]
[1745834581172,6.8043,1808.6,1808.3,5.6687]
[1745834581475,1.5972,1808.5,1808.3,5.6687]
[1745834581669,2.70275,1808.5,1808.3,6.77434]
[1745834581865,1.10559,1808.4,1808.3,6.77433]
[1745834582064,1.5972,1808.4,1808.3,6.77433]
[1745834582264,2.70279,1808.4,1808.3,10.57635]
[1745834582672,2.70279,1808.4,1808.3,3.802]
[1745834582867,7.70279,1808.4,1808.3,3.802]
[1745834583067,7.70279,1808.4,1808.3,3.3488]
[1745834583370,1.10571,1808.2,1808.0,1.10579]
[1745834583675,0.8312,1808.1,1808.0,1.10579]
[1745834583865,2.4568,1808.1,1807.9,5.6687]
[1745834584070,3.5626,1808.1,1807.9,5.15756]
[1745834584265,1.6256,1808.0,1807.9,5.15756]
[1745834585173,0.8312,1808.1,1808.0,1.10584]
[1745834585368,5.2386,1808.2,1808.1,1.10577]
[1745834585573,6.34431,1808.2,1808.1,1.10577]
[1745834586867,3.613,1808.2,1808.1,1.10577]
[1745834587070,3.613,1808.2,1808.1,4.31357]
[1745834587365,1.1057,1808.3,1808.1,4.31357]
[1745834587672,1.1057,1808.3,1808.2,2.5171]
[1745834588264,1.1057,1808.3,1808.2,0.8185]
[1745834588465,1.10571,1808.2,1808.1,3.2078]
[1745834588672,2.74151,1808.2,1808.0,1.10582]
[1745834588874,1.10577,1808.1,1808.0,1.10582]
[1745834589171,1.10577,1808.1,1808.0,2.79212]
[1745834589874,2.74157,1808.2,1808.1,1.10577]
[1745834590075,2.74157,1808.2,1808.1,2.79207]
[1745834590277,2.74157,1808.2,1808.1,1.6863]
[1745834590572,1.10577,1808.2,1808.1,2.79207]
[1745834590879,1.10577,1808.2,1808.1,5.99987]
[1745834591472,1.6998,1808.3,1808.1,5.99987]
[1745834591686,1.10571,1808.3,1808.2,3.62481]
[1745834591870,1.10571,1808.3,1808.2,4.46291]
[1745834592880,2.83823,1808.4,1808.2,4.46291]
[1745834593882,1.10565,1808.3,1808.2,0.8328]
[1745834594073,2.83825,1808.3,1808.2,1.93851]
[1745834594273,3.64515,1808.3,1808.2,1.93851]
[1745834594772,3.64515,1808.3,1808.2,0.8328]
[1745834594973,3.64515,1808.3,1808.2,1.93851]
[1745834595980,2.5395,1808.3,1808.2,1.93851]
[1745834596183,3.64515,1808.3,1808.2,1.93851]
[1745834596583,2.83825,1808.3,1808.2,1.93851]
[1745834596883,2.83825,1808.3,1808.2,1.10571]
[1745834597982,1.7326,1808.3,1807.9,3.2078]
[1745834598282,1.10601,1807.8,1807.7,1.106]
[1745834598475,1.10602,1807.7,1807.6,1.93448]
[1745834598684,3.53442,1807.7,1807.6,1.93448]
[1745834598979,3.53442,1807.7,1807.6,42.73448]
[1745834599185,3.53442,1807.7,1807.6,41.6284]
[1745834599483,3.53442,1807.7,1807.6,41.90608]
[1745834600684,2.4284,1807.7,1807.6,41.90608]
[1745834600884,3.53442,1807.7,1807.6,43.63148]
[1745834601684,2.4284,1807.7,1807.6,43.63148]
[1745834601880,0.8198,1807.7,1807.6,43.63148]
[1745834602077,3.58551,1808.0,1807.9,1.1059]
[1745834602078,1.10587,1808.0,1807.9,1.1059]
[1745834602286,6.1757,1808.2,1807.9,3.2078]
[1745834602583,6.1757,1808.2,1808.1,4.31357]
[1745834602981,6.1757,1808.2,1808.1,46.77427]
[1745834604082,3.607,1808.2,1808.1,46.77427]
[1745834604386,1.10559,1808.4,1808.3,1.10562]
[1745834604885,2.80549,1808.4,1808.3,1.10562]
[1745834605293,1.10565,1808.3,1808.2,1.638]
[1745834605589,2.80555,1808.3,1808.2,2.74371]
[1745834605782,1.10571,1808.2,1808.1,45.11353]
[1745834605983,1.6999,1808.2,1808.1,45.11357]
[1745834606284,1.6999,1808.2,1808.1,46.75157]
[1745834611592,2.80561,1808.2,1808.1,46.75157]
[1745834611784,1.6999,1808.2,1808.1,46.75157]
[1745834612888,2.80561,1808.2,1808.1,46.75157]
[1745834613784,1.6999,1808.2,1808.1,46.75157]
[1745834614587,2.5057,1808.2,1808.1,46.75157]
[1745834615694,3.61141,1808.2,1808.1,46.75157]
[1745834615893,2.5057,1808.2,1808.1,46.75157]
[1745834618095,3.606,1808.3,1808.2,1.10571]
[1745834618291,3.606,1808.3,1808.2,2.78901]
[1745834618894,3.60704,1808.4,1808.3,1.10565]
[1745834619294,3.60704,1808.4,1808.3,1.96515]
[1745834620098,7.21304,1808.4,1808.3,1.96515]
[1745834620300,7.21304,1808.4,1808.3,3.66275]
[1745834621097,6.1074,1808.4,1808.3,3.66275]
[1745834621297,7.21299,1808.4,1808.3,3.66275]
[1745834623698,3.606,1808.4,1808.3,3.66275]
[1745834623991,3.606,1808.4,1808.3,4.53305]
[1745834624196,4.71159,1808.4,1808.3,4.53305]
[1745834624397,3.606,1808.4,1808.3,4.53305]
[1745834625100,4.71159,1808.4,1808.3,4.53305]
[1745834625303,4.71159,1808.4,1808.3,1.96515]
[1745834625903,7.12749,1808.4,1808.3,1.10565]
[1745834626399,7.12749,1808.4,1808.2,0.8002]
[1745834626400,1.10565,1808.3,1808.2,1.90587]
[1745834626598,3.57885,1808.3,1808.2,1.90587]
[1745834626900,3.57885,1808.3,1808.2,0.8002]
[1745834627810,3.57885,1808.3,1808.2,1.90591]
[1745834628005,2.4732,1808.3,1808.2,1.90591]
[1745834628200,3.57885,1808.3,1808.2,3.48551]
[1745834628801,3.57885,1808.3,1808.2,2.3798]
[1745834629798,3.57885,1808.3,1808.2,3.48551]
[1745834630203,1.10565,1808.3,1808.2,4.34491]
[1745834631006,2.76885,1808.3,1808.2,4.34491]
[1745834631607,2.76885,1808.3,1808.2,3.2392]
[1745834631907,2.76885,1808.3,1808.2,4.34491]
[1745834633105,0.67166111,1808.7,1808.3,2.76414]
[1745834633315,1.1054,1808.8,1808.7,1.10539]
[1745834633606,1.1054,1808.8,1808.7,3.53919]
[1745834634199,3.586,1809.6,1809.0,2.76299]
[1745834634403,1.10501,1809.4,1809.3,1.10504]
[1745834635608,2.80201,1809.4,1809.3,1.10504]
[1745834635803,1.71603775,1809.5,1809.4,1.10498]
[1745834636011,1.10492,1809.5,1809.4,2.76328]
[1745834636208,2.80192,1809.5,1809.4,2.76328]
[1745834636512,3.43620114,1809.5,1809.4,2.76328]
[1745834637509,1.10498,1809.4,1809.3,40.8]
[1745834637714,2.78798,1809.4,1809.3,41.90504]
[1745834638008,1.683,1809.4,1809.3,41.90504]
[1745834639113,1.683,1809.4,1808.9,3.2078]
[1745834639312,4.68906,1809.3,1809.2,1.10509]
[1745834639613,3.584,1809.3,1809.2,1.10509]
[1745834639810,5.267,1809.3,1809.2,1.10509]
[1745834640113,6.37205,1809.3,1809.1,2.71374]
[1745834640314,1.683,1809.2,1809.1,2.71374]
[1745834640512,3.584,1809.3,1809.2,1.1051]
[1745834640713,3.584,1809.3,1809.2,3.5542]
[1745834641620,4.68904,1809.3,1809.2,2.4491]
[1745834641919,1.10516,1809.1,1809.0,44.0078]
[1745834642617,2.76366,1809.1,1809.0,44.0078]
[1745834643729,1.89675,1809.2,1809.1,1.10516]
[1745834643925,1.89675,1809.2,1809.1,2.4866]
[1745834644131,1.89675,1809.2,1809.1,3.59176]
[1745834644932,1.89675,1809.2,1809.1,0.8138]
[1745834645131,1.10516,1809.1,1809.0,44.0078]
[1745834645631,2.72596,1809.1,1809.0,44.0078]
[1745834646233,2.72596,1809.1,1809.0,45.11302]
[1745834646536,1.10535,1808.8,1808.7,4.3132]
[1745834647033,1.10535,1808.8,1808.7,45.1132]
[1745834647224,1.10535,1808.8,1808.7,46.8031]
[1745834647938,1.10535,1808.8,1808.7,45.6977]
[1745834648534,1.10535,1808.8,1808.7,46.80311]
[1745834650535,1.10535,1808.8,1808.7,45.6977]
[1745834650927,1.10535,1808.8,1808.7,46.80311]
[1745834652036,1.96055,1808.8,1808.7,46.80311]
[1745834652934,1.96055,1808.8,1808.7,45.6977]
[1745834653137,1.96055,1808.8,1808.7,46.80311]
[1745834653433,1.96055,1808.8,1808.7,45.6977]
[1745834653635,1.96055,1808.8,1808.7,46.80311]
[1745834654840,0.8552,1808.8,1808.7,46.80311]
[1745834655336,2.77942,1808.9,1808.8,1.10535]
[1745834655538,5.52847,1809.0,1808.9,1.10529]
[1745834655734,4.71502,1809.4,1809.0,2.76301]
[1745834655938,1.10508,1809.3,1809.2,1.10507]
[1745834656129,2.72088,1809.3,1809.2,1.10507]
[1745834656325,2.72088,1809.3,1809.2,42.70537]
[1745834656739,2.72088,1809.3,1809.2,41.6003]
[1745834656940,2.72088,1809.3,1809.2,42.7054]
[1745834657144,3.52298,1809.3,1809.2,42.7054]
[1745834657441,3.52298,1809.3,1809.2,40.8]
[1745834657632,3.52298,1809.3,1809.2,41.9051]
[1745834657834,1.1051,1809.2,1809.1,1.10512]
[1745834658033,2.7209,1809.2,1809.1,1.10512]
[1745834658340,1.6158,1809.2,1809.1,41.90512]
[1745834658528,1.6158,1809.2,1809.1,43.59402]
[1745834658929,2.7209,1809.2,1809.1,43.59402]
[1745834659641,2.7209,1809.2,1809.1,41.90512]
[1745834659847,1.10516,1809.1,1809.0,1.90551]
[1745834660041,2.72836,1809.1,1809.0,1.90551]
[1745834660242,5.2322,1809.1,1809.0,1.90551]
[1745834660441,6.33736,1809.1,1809.0,42.70551]
[1745834660942,5.2322,1809.1,1809.0,42.70551]
[1745834662247,6.33736,1809.1,1809.0,42.70551]
[1745834662539,5.2322,1809.1,1809.0,42.70551]
[1745834662742,6.33736,1809.1,1809.0,42.70551]
[1745834662941,6.33736,1809.1,1809.0,41.6003]
[1745834663540,10.2322,1809.1,1807.9,5.848]
[1745834663746,3.2078,1808.3,1808.2,1.7439]
[1745834663946,4.31345,1808.3,1808.2,1.7439]
[1745834664340,2.71765,1808.3,1808.2,1.7439]
[1745834664537,2.71765,1808.3,1808.0,1.8943]
[1745834664538,1.612,1808.3,1808.0,1.8943]
[1745834664738,2.71771,1808.2,1808.1,1.7439]
[1745834665139,2.71771,1808.2,1808.0,0.7885]
[1745834665344,2.71771,1808.2,1808.0,2.4459]
[1745834665844,2.71771,1808.2,1808.0,3.55173]
[1745834666445,3.84753127,1808.2,1808.0,3.55173]
[1745834666745,1.618,1808.1,1808.0,3.55173]
[1745834667242,4.3135,1808.3,1808.1,1.10577]
[1745834667439,5.42232484,1808.3,1808.2,1.6574]
[1745834667639,3.2078,1808.3,1808.2,2.76311]
[1745834668746,4.71462,1808.4,1808.3,1.10565]
[1745834668747,3.609,1808.4,1808.3,1.10565]
[1745834669039,3.609,1808.4,1808.3,3.67915]
[1745834671448,1.6846,1808.6,1808.4,1.10555]
[1745834671747,1.6846,1808.6,1808.4,3.57755]
[1745834671949,1.6846,1808.6,1808.5,1.10553]
[1745834672244,1.6846,1808.6,1808.5,43.55893]
[1745834672645,3.2078,1809.0,1808.5,42.4534]
[1745834672946,6.29076,1809.0,1808.8,1.10533]
[1745834673251,1.5755,1808.9,1808.8,1.10533]
[1745834673751,2.68079,1808.9,1808.8,1.10533]
[1745834674044,1.5755,1808.9,1808.8,1.10533]
[1745834674347,1.10545,1808.7,1808.5,40.8]
[1745834674550,2.83127,1808.6,1808.5,1.10553]
[1745834674755,1.7258,1808.6,1808.5,1.10553]
[1745834675349,1.7258,1808.6,1808.4,46.4325]
[1745834675350,2.8313,1808.6,1808.4,43.2247]
[1745834675647,2.8313,1808.6,1808.5,1.10553]
[1745834675843,1.10549,1808.6,1808.4,44.33024]
[1745834676048,1.10551,1808.6,1808.4,41.6186]
[1745834676236,1.10551,1808.6,1808.4,42.72416]
[1745834676846,1.10553,1808.5,1808.4,40.8]
[1745834677149,4.31333,1808.5,1808.4,41.90559]
[1745834677351,3.2078,1808.5,1808.4,41.90559]
[1745834678948,3.2078,1808.5,1808.4,42.71979]
[1745834679340,3.2078,1808.5,1808.4,43.58639]
[1745834680253,3.2078,1808.5,1808.4,42.77219]
[1745834681253,1.10548,1808.6,1808.5,1.10553]
[1745834681454,8.72584,1808.7,1808.6,1.10547]
[1745834683053,1.1055,1808.6,1808.5,1.10553]
[1745834683253,1.1055,1808.6,1808.5,1.6428]
[1745834683657,1.10553,1808.5,1808.4,42.77215]
[1745834683856,7.6204,1808.7,1808.4,42.77215]
[1745834684552,10.38394,1808.7,1808.4,42.77215]
[1745834684757,1.10559,1808.4,1808.3,1.5743]
[1745834685357,1.10559,1808.4,1808.3,43.47995]
[1745834686661,1.10559,1808.4,1808.3,42.3743]
[1745834686956,1.95329,1808.4,1808.3,40.8]
[1745834687750,1.10565,1808.3,1808.2,1.94221]
[1745834688153,2.80565,1808.3,1808.2,42.74221]
[1745834689652,2.80565,1808.3,1808.2,41.6365]